bitfinex-derivatives/quotes_ETHF0:USTF0_20250410
["timestamp","ask_amount","ask_price","bid_price","bid_amount"]
[1744283593061,2.9594,1589.1,1588.9,51.22495]
[1744283593462,3.9302,1589.0,1588.9,51.22495]
[1744283593662,2.6707,1589.0,1588.9,51.22495]
[1744283594067,3.9302,1589.0,1588.9,51.22495]
[1744283594467,2.6707,1589.0,1588.9,51.22495]
[1744283596166,2.6707,1589.0,1588.9,46.84095]
[1744283596371,2.6707,1589.0,1588.8,1.26907048]
[1744283596572,1.5866,1588.9,1588.8,2.86997048]
[1744283596774,1.5866,1588.9,1588.8,43.66997048]
[1744283598667,0.9708,1589.0,1588.8,42.41034048]
[1744283598869,1.0345,1589.2,1589.1,1.25942]
[1744283599075,8.78434002,1589.4,1589.2,1.25935]
[1744283599373,7.52509002,1589.4,1589.3,1.25927]
[1744283599759,7.33918503,1589.4,1589.3,1.25927]
[1744283599970,7.33918503,1589.4,1589.3,3.87677]
[1744283600875,7.33918503,1589.4,1589.3,7.08457]
[1744283601475,7.33918503,1589.4,1589.3,12.08457]
[1744283603369,7.33918503,1589.4,1589.3,13.60079315]
[1744283603772,2.00518505,1589.4,1589.3,13.60079315]
[1744283605277,5.05e-06,1589.4,1589.3,13.60079315]
[1744283605670,12.24141553,1589.7,1589.6,1.25903]
[1744283605671,0.00944048,1589.7,1589.6,1.25903]
[1744283605870,0.00944048,1589.7,1589.6,49.65083]
[1744283606371,0.00944048,1589.7,1589.6,51.60393]
[1744283611475,1.26839048,1589.7,1589.6,50.3449]
[1744283611776,0.00944048,1589.7,1589.6,49.65083]
[1744283612077,0.00944048,1589.7,1589.6,8.85083]
[1744283612980,0.00944048,1589.7,1589.6,10.47523]
[1744283614877,0.00944048,1589.7,1589.6,11.99145315]
[1744283615280,1.25911,1589.5,1589.4,2.14582315]
[1744283615577,1.25927,1589.3,1589.2,14.82371711]
[1744283615779,4.46707,1589.3,1589.2,14.82371711]
[1744283615982,6.25927,1589.3,1589.2,14.82371711]
[1744283616182,9.46707,1589.3,1589.2,14.82371711]
[1744283619981,6.25927,1589.3,1589.2,14.82371711]
[1744283620180,1.25942,1589.1,1589.0,1.25949]
[1744283620486,1.25942,1589.1,1588.9,1.25952]
[1744283620691,1.6294,1589.0,1588.9,1.25952]
[1744283621487,1.25958,1588.9,1588.8,8.85786048]
[1744283621681,1.25958,1588.9,1588.8,7.59824048]
[1744283621887,1.25958,1588.9,1588.8,4.39044048]
[1744283622388,1.25958,1588.9,1588.8,0.00944048]
[1744283623387,6.25958,1588.9,1588.8,0.00944048]
[1744283626191,4.46738,1588.9,1588.8,0.00944048]
[1744283626490,9.46738,1588.9,1588.8,0.00944048]
[1744283627089,12.15238,1588.9,1588.8,0.00944048]
[1744283627290,7.15238,1588.9,1588.8,0.00944048]
[1744283628494,3.94458,1588.9,1588.8,0.00944048]
[1744283629387,7.15238,1588.9,1588.8,0.00944048]
[1744283629587,3.94458,1588.9,1588.8,0.00944048]
[1744283631692,7.15238,1588.9,1588.8,0.00944048]
[1744283640901,7.15238,1588.9,1588.8,4.8e-07]
[1744283644210,12.98638,1588.9,1588.8,4.8e-07]
[1744283652921,9.77858,1588.9,1588.8,4.8e-07]
[1744283653111,9.77858,1588.9,1588.8,1.60730048]
[1744283653313,12.98638,1588.9,1588.8,4.8e-07]
[1744283656313,9.77858,1588.9,1588.8,4.8e-07]
[1744283656619,1.25958,1588.9,1588.8,6.70270048]
[1744283657718,1.25958,1588.9,1588.8,1.70270048]
[1744283658117,1.25958,1588.9,1588.8,2.96236048]
[1744283658420,1.25957,1589.0,1588.8,7.96236048]
[1744283658609,1.25939,1589.2,1588.9,5.946]
[1744283658810,1.25942,1589.1,1589.0,1.564]
[1744283659008,1.25942,1589.1,1589.0,2.524]
[1744283660616,1.25942,1589.1,1589.0,1.564]
[1744283660821,2.96412,1589.1,1589.0,1.564]
[1744283661823,2.96412,1589.1,1588.8,0.96000048]
[1744283661824,1.25958,1588.9,1588.8,0.96000048]
[1744283663315,1.25958,1588.9,1588.8,2.58230048]
[1744283664717,1.25958,1588.9,1588.8,4.8e-07]
[1744283664919,3.87548,1588.9,1588.8,4.8e-07]
[1744283666227,14.60798352,1588.9,1588.8,4.8e-07]
[1744283666619,1.25998,1588.4,1588.3,8.21771222]
[1744283666817,4.46778,1588.4,1588.3,5.57666174]
[1744283667032,4.46778,1588.4,1588.3,3.38625174]
[1744283667324,6.09458,1588.4,1588.3,0.41768174]
[1744283667521,6.09458,1588.4,1588.3,1.74e-06]
[1744283669023,6.60810241,1588.4,1588.3,1.74e-06]
[1744283669221,6.60810241,1588.4,1588.2,13.18930885]
[1744283669222,1.26006,1588.3,1588.2,13.18930885]
[1744283669526,1.26022,1588.1,1588.0,14.94080321]
[1744283669816,8.84802,1588.1,1588.0,12.84771321]
[1744283670021,13.84802,1588.1,1588.0,11.05422321]
[1744283670219,5.52332,1588.1,1588.0,11.05422321]
[1744283670427,7.06952,1588.1,1588.0,11.05422321]
[1744283672231,7.06952,1588.1,1588.0,9.68038321]
[1744283672626,7.06952,1588.1,1587.8,0.975]
[1744283672627,1.26038,1587.9,1587.8,0.975]
[1744283672822,1.26061,1587.6,1587.5,5.4169]
[1744283673024,1.26061,1587.6,1587.5,6.9792]
[1744283673328,1.26061,1587.6,1587.5,3.5688]
[1744283674035,1.26061,1587.6,1587.2,24.60943877]
[1744283674036,3.15167,1587.6,1587.2,25.87034877]
[1744283674329,4.46854,1587.5,1587.3,3.6241]
[1744283674536,13.36642,1587.7,1587.3,3.6241]
[1744283674537,1.27011048,1587.6,1587.4,2.85664]
[1744283674720,1.27011048,1587.6,1587.5,1.5959]
[1744283674923,1.27011048,1587.6,1587.5,4.8037]
[1744283675224,4.39044048,1587.6,1587.3,1.26078]
[1744283675424,1.26074,1587.5,1587.4,1.5959]
[1744283675829,1.27013048,1587.6,1587.5,1.26069]
[1744283676028,0.00944048,1587.6,1587.5,2.85659]
[1744283676231,1.27005048,1587.6,1587.5,1.5959]
[1744283676825,1.26077,1587.4,1587.3,2.0282]
[1744283677029,1.26077,1587.4,1587.3,3.6986]
[1744283678823,1.6168,1587.5,1587.2,1.26089]
[1744283679129,1.26084,1587.4,1587.3,0.9768]
[1744283679329,1.26084,1587.4,1587.3,2.23765]
[1744283679529,1.26084,1587.4,1587.3,0.9768]
[1744283679731,1.26084,1587.4,1587.3,2.23765]
[1744283679932,1.26069,1587.5,1587.3,2.23759]
[1744283680328,1.26069,1587.5,1587.4,1.26077]
[1744283680733,1.27011048,1587.6,1587.5,1.26069]
[1744283680937,1.27011048,1587.6,1587.5,2.28799]
[1744283682331,1.27011048,1587.6,1587.5,1.0273]
[1744283683335,2.83361048,1587.6,1587.5,1.0273]
[1744283685537,1.26077,1587.4,1587.3,0.9768]
[1744283685738,1.26077,1587.4,1587.3,2.0385]
[1744283685937,1.26077,1587.4,1587.3,3.29935]
[1744283686141,1.26077,1587.4,1587.3,2.0385]
[1744283686531,1.26077,1587.4,1587.3,0.9768]
[1744283687037,2.93747,1587.4,1587.3,0.9768]
[1744283687741,3.1524,1587.2,1586.7,4.72402315]
[1744283688041,1.26124,1586.9,1586.5,6.76552315]
[1744283688235,1.26128,1586.8,1586.6,1.26138]
[1744283688433,1.26133,1586.7,1586.5,4.46923]
[1744283689230,2.87003,1586.7,1586.5,4.46923]
[1744283689634,0.00944048,1586.8,1586.7,1.26133]
[1744283689841,0.00944048,1586.8,1586.7,4.46913]
[1744283690240,0.00944048,1586.8,1586.7,5.53263]
[1744283691644,1.27069048,1586.8,1586.7,4.2713]
[1744283691845,0.00944048,1586.8,1586.7,5.53263]
[1744283693440,1.27069048,1586.8,1586.7,1.0635]
[1744283693630,2.87379048,1586.8,1586.7,1.0635]
[1744283694236,0.00944048,1586.8,1586.7,5.53263]
[1744283694940,1.27069048,1586.8,1586.7,5.53263]
[1744283695847,1.27069048,1586.8,1586.7,4.2713]
[1744283696236,1.27069048,1586.8,1586.7,1.0635]
[1744283696632,1.26133,1586.7,1586.6,2.6075]
[1744283696837,2.89053,1586.7,1586.6,2.6075]
[1744283697548,0.00944048,1586.8,1586.7,1.26133]
[1744283697843,0.00944048,1586.8,1586.7,2.84743]
[1744283698641,0.00944048,1586.8,1586.7,6.05523]
[1744283700251,1.27069048,1586.8,1586.7,1.5861]
[1744283700442,0.00944048,1586.8,1586.7,2.84743]
[1744283701143,1.27069048,1586.8,1586.7,2.84743]
[1744283701448,0.00944048,1586.8,1586.7,2.84743]
[1744283702445,0.00944048,1586.8,1586.7,9.36365315]
[1744283703451,0.00944048,1586.8,1586.7,4.36365315]
[1744283704649,1.27069048,1586.8,1586.7,4.36365315]
[1744283704849,0.00944048,1586.8,1586.7,4.36365315]
[1744283705153,1.26133,1586.7,1586.6,5.49055]
[1744283705353,1.26141,1586.6,1586.5,2.28539]
[1744283705650,1.26141,1586.6,1586.5,1.0239]
[1744283705953,1.69044048,1586.8,1586.5,2.6556]
[1744283706149,1.26133,1586.7,1586.6,2.89309]
[1744283706360,2.95171048,1586.8,1586.7,1.26133]
[1744283707051,0.00944048,1586.8,1586.7,1.26133]
[1744283707248,0.00944048,1586.8,1586.7,3.86313]
[1744283707452,0.00944048,1586.8,1586.7,8.30813]
[1744283712458,7.09472,1587.5,1587.4,1.26077]
[1744283712648,1.26078,1587.4,1587.3,1.26078]
[1744283713054,1.26074,1587.5,1587.4,1.26075]
[1744283713456,1.26078,1587.4,1587.3,1.2608]
[1744283713761,1.26083,1587.4,1587.3,1.26083]
[1744283714259,2.93212,1587.5,1587.4,1.26077]
[1744283714558,4.8702109,1587.4,1587.2,6.7214]
[1744283714751,6.5416109,1587.4,1587.3,1.26085]
[1744283715059,1.26093,1587.2,1587.1,1.51622315]
[1744283715556,5.83158,1587.3,1586.9,8.0592]
[1744283715856,1.26109,1587.0,1586.9,6.4776]
[1744283716160,1.26109,1587.0,1586.9,7.73877]
[1744283716354,2.93249,1587.0,1586.9,7.73877]
[1744283717061,3.90089,1587.0,1586.9,4.445]
[1744283717559,2.6398,1587.0,1586.9,5.70617]
[1744283718457,1.6714,1587.0,1586.9,5.70617]
[1744283718654,0.9684,1587.3,1586.9,6.135]
[1744283718854,6.4219109,1587.3,1587.2,4.46873]
[1744283719062,4.8702109,1587.3,1587.2,4.46873]
[1744283719364,4.8702109,1587.3,1587.2,8.91373]
[1744283719657,6.5799109,1587.3,1587.2,8.91373]
[1744283720251,7.8407609,1587.3,1587.2,8.91373]
[1744283720451,6.5799109,1587.3,1587.2,8.91373]
[1744283720651,6.5799109,1587.3,1587.2,10.55433]
[1744283721362,7.8407609,1587.3,1587.2,8.91373]
[1744283721562,7.8407609,1587.3,1587.2,4.445]
[1744283722161,1.26093,1587.2,1587.1,5.43747]
[1744283722355,2.97063,1587.2,1587.1,5.43747]
[1744283722659,3.99473,1587.2,1587.1,3.2078]
[1744283723055,2.7338,1587.2,1587.1,1.26101]
[1744283723251,1.7097,1587.2,1587.1,1.26101]
[1744283723453,1.7097,1587.2,1587.1,2.95571]
[1744283724563,2.97063,1587.2,1587.1,2.95571]
[1744283724865,2.97063,1587.2,1587.1,1.26101]
[1744283725349,1.7097,1587.2,1587.1,1.26101]
[1744283726264,1.7097,1587.2,1587.1,2.97161]
[1744283728062,1.7097,1587.2,1587.1,1.26101]
[1744283728253,1.7097,1587.2,1587.0,3.2078]
[1744283728457,2.97067,1587.2,1587.1,1.26101]
[1744283728658,1.7097,1587.2,1587.1,1.26101]
[1744283728855,7.1710509,1587.5,1587.1,9.66859315]
[1744283729060,7.5421109,1587.5,1587.4,1.26077]
[1744283729366,8.8028009,1587.5,1587.4,1.26077]
[1744283730068,1.26077,1587.4,1587.3,3.2078]
[1744283730266,1.6318,1587.4,1587.3,1.26085]
[1744283730558,2.89262,1587.4,1587.3,1.26085]
[1744283732562,2.26070048,1587.6,1587.3,3.2078]
[1744283732864,2.71114048,1587.6,1587.5,1.26069]
[1744283733064,1.26069,1587.5,1587.4,4.412]
[1744283733266,2.97179,1587.5,1587.4,4.412]
[1744283733670,1.7111,1587.5,1587.3,1.26081]
[1744283733861,2.97189,1587.4,1587.3,1.26081]
[1744283734060,2.97189,1587.4,1587.3,2.86451]
[1744283735262,2.97189,1587.4,1587.3,6.07231]
[1744283735664,2.97189,1587.4,1587.3,4.8115]
[1744283736464,2.97189,1587.4,1587.3,1.6037]
[1744283736971,1.7111,1587.4,1587.3,2.86455]
[1744283737562,1.26076,1587.5,1587.4,1.26077]
[1744283737870,2.26071048,1587.6,1587.5,1.26069]
[1744283738061,0.00944048,1587.6,1587.5,1.26069]
[1744283738261,0.00944048,1587.6,1587.5,3.94429]
[1744283738866,0.00944048,1587.6,1587.5,10.46051315]
[1744283739068,0.00944048,1587.6,1587.5,51.26051315]
[1744283741473,0.00944048,1587.6,1587.5,46.26051315]
[1744283746183,1.26069,1587.5,1587.4,8.87953]
[1744283746479,1.0686,1587.5,1587.4,8.87953]
[1744283746679,1.0686,1587.5,1587.4,49.67953]
[1744283746879,2.7486,1587.5,1587.4,49.67953]
[1744283747480,4.00929,1587.5,1587.4,49.67953]
[1744283747982,1.68,1587.5,1587.4,49.67953]
[1744283748186,1.68,1587.5,1587.4,51.25163]
[1744283751380,0.00944048,1587.6,1587.5,1.26069]
[1744283751580,0.00944048,1587.6,1587.5,3.87509]
[1744283752779,0.00944048,1587.6,1587.5,8.87509]
[1744283752980,0.00944048,1587.6,1587.5,9.50549]
[1744283753183,0.00944048,1587.6,1587.5,8.87509]
[1744283753382,0.00944048,1587.6,1587.5,9.50549]
[1744283753684,0.00944048,1587.6,1587.5,8.87509]
[1744283753881,0.00944048,1587.6,1587.5,9.50549]
[1744283754078,0.00944048,1587.6,1587.5,8.87509]
[1744283754585,0.00944048,1587.6,1587.5,9.50549]
[1744283754785,0.00944048,1587.6,1587.5,3.87509]
[1744283755785,0.00944048,1587.6,1587.5,5.39131315]
[1744283757292,1.59024048,1587.6,1587.5,5.39131315]
[1744283757688,1.59024048,1587.6,1587.5,1.51622315]
[1744283757991,1.26083,1587.4,1587.2,8.87867]
[1744283758293,2.6096,1587.3,1587.2,8.87867]
[1744283759396,3.87045,1587.3,1587.2,7.6178]
[1744283759889,3.87045,1587.3,1587.2,3.2078]
[1744283761699,1.26101,1587.1,1587.0,14.81946667]
[1744283762196,9.46881,1587.1,1587.0,14.81946667]
[1744283762398,11.07961,1587.1,1587.0,13.52503667]
[1744283762693,15.48161,1587.1,1587.0,10.95713667]
[1744283763001,1.26133,1586.7,1586.6,0.00944048]
[1744283763499,3.3687,1586.8,1586.6,0.00944048]
[1744283763686,3.3687,1586.8,1586.6,6.10550048]
[1744283763888,1.26133,1586.7,1586.6,4.84414048]
[1744283764092,1.26133,1586.7,1586.6,1.63634048]
[1744283764499,1.26133,1586.7,1586.6,0.00944048]
[1744283766099,2.91433,1586.7,1586.6,0.00944048]
[1744283766691,21.36013,1586.7,1586.6,4.8e-07]
[1744283767900,21.86587526,1586.7,1586.6,4.8e-07]
[1744283768296,1.653,1586.7,1586.6,1.26141048]
[1744283768494,1.653,1586.7,1586.6,4.8e-07]
[1744283768495,2.91433,1586.7,1586.6,4.8e-07]
[1744283769796,2.1074,1586.8,1586.6,4.8e-07]
[1744283770001,1.26133,1586.7,1586.6,1.26137048]
[1744283770198,1.26133,1586.7,1586.6,4.8e-07]
[1744283770394,2.97253,1586.7,1586.6,4.8e-07]
[1744283771796,11.18033,1586.7,1586.6,4.8e-07]
[1744283772603,15.58533,1586.7,1586.6,4.8e-07]
[1744283772802,10.58533,1586.7,1586.6,4.8e-07]
[1744283773104,6.18033,1586.7,1586.6,4.8e-07]
[1744283774108,11.18033,1586.7,1586.6,4.8e-07]
[1744283775404,17.01433,1586.7,1586.6,4.8e-07]
[1744283776005,1.26149,1586.5,1586.4,6.55e-06]
[1744283776306,3.15463,1586.1,1585.6,3.2078]
[1744283776509,1.26197,1585.9,1585.7,1.5925]
[1744283776704,1.26202,1585.9,1585.7,2.85457]
[1744283776909,1.0262,1586.0,1585.7,1.26207]
[1744283777101,1.26209,1585.8,1585.6,5.66713]
[1744283777302,1.26214,1585.7,1585.6,1.2622]
[1744283777503,1.26212,1585.8,1585.6,2.85845]
[1744283777803,1.064,1585.9,1585.8,1.26205]
[1744283778102,1.26205,1585.8,1585.7,1.5963]
[1744283778295,2.32602,1585.9,1585.7,1.5963]
[1744283778499,2.29759048,1586.0,1585.9,1.26197]
[1744283778696,2.29759048,1586.0,1585.8,3.2078]
[1744283778697,1.27139048,1586.0,1585.8,5.54919]
[1744283778905,1.27139048,1586.0,1585.9,1.26197]
[1744283779115,1.27139048,1586.0,1585.9,1.5963]
[1744283780612,0.00944048,1586.0,1585.9,2.85827]
[1744283780807,0.00944048,1586.0,1585.9,6.06607]
[1744283781004,0.00944048,1586.0,1585.9,12.58229315]
[1744283781303,1.2617,1586.3,1586.1,1.26174]
[1744283781509,1.2617,1586.3,1585.9,4.8041]
[1744283781510,1.26176,1586.2,1585.9,4.8041]
[1744283781703,1.6985,1586.3,1586.0,1.5664]
[1744283781908,1.26181,1586.1,1586.0,1.5664]
[1744283783012,1.26181,1586.1,1586.0,2.82829]
[1744283783318,0.00944048,1586.2,1586.1,1.26181]
[1744283783507,0.00944048,1586.2,1586.1,2.82431]
[1744283784012,0.00944048,1586.2,1586.1,7.23031]
[1744283785314,0.00944048,1586.2,1586.1,5.9685]
[1744283785516,1.27117048,1586.2,1586.1,5.9685]
[1744283785809,0.00944048,1586.2,1586.1,7.23031]
[1744283786517,1.27117048,1586.2,1586.1,1.5625]
[1744283787716,1.27117048,1586.2,1586.1,2.82431]
[1744283787924,1.27117048,1586.2,1586.1,1.5625]
[1744283788610,2.91327048,1586.2,1586.1,1.5625]
[1744283789308,1.26189,1586.0,1585.9,1.27138048]
[1744283789616,3.94846,1586.1,1586.0,1.26189]
[1744283789814,2.26586,1586.1,1586.0,1.26189]
[1744283790117,1.26189,1586.0,1585.9,2.83247048]
[1744283790915,1.26189,1586.0,1585.9,1.57054048]
[1744283792618,1.26189,1586.0,1585.9,4.8e-07]
[1744283792915,8.92619,1586.0,1585.9,4.8e-07]
[1744283793116,13.48219,1586.0,1585.9,4.8e-07]
[1744283793317,19.31619,1586.0,1585.9,4.8e-07]
[1744283793517,19.31619,1586.0,1585.3,1.26241]
[1744283793518,1.26236,1585.4,1585.3,2.0081]
[1744283793718,1.26236,1585.4,1585.3,3.716]
[1744283794224,3.2078,1585.8,1585.3,3.716]
[1744283794421,3.2078,1585.8,1585.4,6.17802]
[1744283794422,1.26228,1585.5,1585.4,6.17802]
[1744283794624,1.26228,1585.5,1585.4,4.47012]
[1744283795021,1.6589,1585.7,1585.4,4.47012]
[1744283795225,1.26228,1585.5,1585.4,3.2078]
[1744283795515,1.26236,1585.4,1585.3,3.27048]
[1744283796125,1.26236,1585.4,1585.3,2.0081]
[1744283796324,1.26236,1585.4,1585.3,3.27054]
[1744283796826,1.26236,1585.4,1585.3,2.0081]
[1744283797223,2.0378,1585.8,1585.3,7.0081]
[1744283797417,1.26217,1585.7,1585.6,1.26218]
[1744283797821,3.16377048,1586.2,1585.6,8.2078]
[1744283798125,1.26184,1586.1,1586.0,1.26187]
[1744283798426,0.00944048,1586.2,1585.8,3.2078]
[1744283798624,3.16379048,1586.2,1585.8,4.46981]
[1744283798818,4.76119048,1586.2,1585.8,1.26201]
[1744283799024,1.26194,1586.0,1585.8,1.26201]
[1744283799426,1.26194,1586.0,1585.9,1.26197]
[1744283799627,1.26194,1586.0,1585.8,4.46978]
[1744283799828,1.26194,1586.0,1585.8,3.2078]
[1744283800026,1.27121048,1586.2,1585.8,7.87905315]
[1744283800227,1.27121048,1586.2,1586.0,1.26182]
[1744283800420,0.00944048,1586.2,1586.0,1.26189]
[1744283800626,0.00944048,1586.2,1586.1,1.26181]
[1744283801423,0.00944048,1586.2,1586.1,3.20111]
[1744283802626,1.27117048,1586.2,1586.1,1.9393]
[1744283803024,0.00944048,1586.2,1586.1,3.20111]
[1744283804229,1.27117048,1586.2,1586.1,1.9393]
[1744283804431,1.27117048,1586.2,1586.1,3.20111]
[1744283804630,1.27117048,1586.2,1586.1,1.9393]
[1744283805234,1.27117048,1586.2,1586.1,3.20111]
[1744283806930,0.00944048,1586.2,1586.0,4.46965]
[1744283807229,1.26181,1586.1,1586.0,6.16345]
[1744283808124,1.26181,1586.1,1586.0,2.95565]
[1744283808326,0.00944048,1586.2,1586.1,1.26181]
[1744283808530,1.27117048,1586.2,1586.1,2.81311]
[1744283808836,1.27117048,1586.2,1586.1,1.5513]
[1744283809230,1.26189,1586.0,1585.9,1.51622315]
[1744283809432,1.26189,1586.0,1585.9,3.06752315]
[1744283811031,1.26197,1585.9,1585.8,4.556]
[1744283811232,3.15492,1585.9,1585.6,3.2078]
[1744283811436,3.5321,1585.8,1585.5,3.6468]
[1744283811627,1.26213,1585.7,1585.6,1.6622]
[1744283811931,2.82193,1585.7,1585.6,1.6622]
[1744283812138,1.26221,1585.6,1585.5,1.9846]
[1744283812432,2.82201,1585.6,1585.5,1.6622]
[1744283813032,1.26236,1585.4,1585.3,9.80128554]
[1744283813232,1.26236,1585.4,1585.3,11.46348554]
[1744283814941,4.47016,1585.4,1585.3,11.46348554]
[1744283815535,4.47016,1585.4,1585.3,9.80128554]
[1744283815737,6.49886,1585.4,1585.3,9.80128554]
[1744283817141,3.29106,1585.4,1585.3,9.80128554]
[1744283818241,1.2626,1585.1,1585.0,4.557]
[1744283818639,1.2626,1585.1,1585.0,48.5648]
[1744283819533,0.00944048,1585.2,1585.1,1.2626]
[1744283819733,0.00944048,1585.2,1585.1,2.8497]
[1744283820044,0.00944048,1585.2,1585.1,7.8497]
[1744283820435,1.27196048,1585.2,1585.1,7.8497]
[1744283820635,0.00944048,1585.2,1585.1,7.8497]
[1744283821545,0.00944048,1585.2,1585.1,12.3407]
[1744283823158,0.00944048,1585.2,1585.1,13.85692315]
[1744283823450,4.8e-07,1585.2,1585.1,13.85692315]
[1744283823648,4.8702109,1585.8,1585.1,16.35272746]
[1744283823845,4.8702109,1585.8,1585.7,1.26213]
[1744283824253,4.8702109,1585.8,1585.7,2.88213]
[1744283824754,6.1322609,1585.8,1585.7,2.88213]
[1744283825343,6.1322609,1585.8,1585.7,1.62]
[1744283825541,6.1322609,1585.8,1585.7,2.88213]
[1744283825947,1.26205,1585.8,1585.7,1.62]
[1744283826152,1.26213,1585.7,1585.6,0.00944048]
[1744283826447,2.44193,1585.7,1585.6,0.00944048]
[1744283826656,4.14503,1585.7,1585.6,0.00944048]
[1744283827448,4.14503,1585.7,1585.6,1.61194048]
[1744283827651,1.26205,1585.8,1585.7,1.26213]
[1744283827850,4.15435048,1585.9,1585.8,1.26205]
[1744283828250,0.00944048,1585.9,1585.8,5.75305]
[1744283828454,0.00944048,1585.9,1585.8,13.53155]
[1744283828851,0.00944048,1585.9,1585.8,15.04777315]
[1744283829253,0.00944048,1585.9,1585.8,13.78572315]
[1744283829657,0.00944048,1585.9,1585.8,8.78572315]
[1744283830058,0.00944048,1585.9,1585.8,10.04777315]
[1744283830359,0.00944048,1585.9,1585.8,8.78572315]
[1744283831457,1.27141048,1585.9,1585.8,8.78572315]
[1744283831649,1.27141048,1585.9,1585.8,1.51622315]
[1744283831959,1.26213,1585.7,1585.6,0.00944048]
[1744283832349,6.26213,1585.7,1585.6,0.00944048]
[1744283832760,1.26213,1585.7,1585.6,0.00944048]
[1744283834064,6.26213,1585.7,1585.6,4.8e-07]
[1744283834260,7.91793,1585.7,1585.6,4.8e-07]
[1744283835053,7.91793,1585.7,1585.0,3.25e-06]
[1744283835054,1.2626,1585.1,1585.0,3.25e-06]
[1744283835260,1.26268,1585.0,1584.9,14.46942807]
[1744283835461,5.13188,1585.0,1584.9,10.76290807]
[1744283835862,5.13188,1585.0,1584.9,7.96558807]
[1744283836062,10.96588,1585.0,1584.9,7.9561471]
[1744283836260,3.15711,1584.8,1583.8,34.45321429]
[1744283836567,1.26348,1584.0,1583.8,34.45321429]
[1744283836963,1.26347,1584.1,1583.9,32.18287161]
[1744283837162,1.26348,1584.0,1583.9,31.19302653]
[1744283837462,4.47128,1584.0,1583.9,16.7737277]
[1744283837669,4.47128,1584.0,1583.9,14.4163077]
[1744283837965,4.47128,1584.0,1583.9,21.71895278]
[1744283838170,4.47128,1584.0,1583.9,23.38065278]
[1744283838469,1.26335,1584.2,1583.9,43.38065933]
[1744283838655,3.2078,1584.4,1584.0,7.30264508]
[1744283838858,0.00944048,1584.5,1584.2,1.26332]
[1744283839060,0.00944048,1584.5,1584.3,1.6838]
[1744283839368,0.00944048,1584.5,1584.4,1.26316]
[1744283839566,0.00944048,1584.5,1584.4,12.57380508]
[1744283839766,0.00944048,1584.5,1584.4,17.57380508]
[1744283839964,1.5067,1585.1,1584.4,16.31064508]
[1744283840172,2.76919,1585.3,1584.8,1.26282]
[1744283840372,1.26244,1585.3,1584.9,4.10231]
[1744283840665,1.5067,1585.4,1584.9,10.14224508]
[1744283840869,2.7691,1585.4,1585.0,7.30264508]
[1744283841063,1.26248,1585.3,1585.1,1.6838]
[1744283841367,1.51614048,1585.4,1585.1,8.98644508]
[1744283841674,1.26252,1585.2,1585.1,8.98644508]
[1744283842365,1.2626,1585.1,1585.0,0.00944048]
[1744283842672,2.7693,1585.1,1585.0,0.00944048]
[1744283842863,3.2078,1585.3,1585.0,0.00944048]
[1744283842864,1.26258,1585.2,1585.0,7.31208556]
[1744283843368,1.26245,1585.3,1585.1,1.5958]
[1744283843566,0.00944048,1585.4,1585.1,13.63344508]
[1744283843769,0.00944048,1585.4,1585.3,1.26244]
[1744283844165,0.00944048,1585.4,1585.3,10.16088508]
[1744283844366,5.97651,1585.9,1585.3,13.89844508]
[1744283844567,3.2078,1585.9,1585.4,15.24544508]
[1744283844767,7.11786,1586.1,1585.8,1.26201]
[1744283844966,7.11786,1586.1,1585.9,2.85776]
[1744283845171,5.97666,1586.1,1585.9,2.85776]
[1744283845469,1.26189,1586.0,1585.9,8.89844508]
[1744283845672,4.46967,1586.1,1585.9,1.5958]
[1744283845871,1.26189,1586.0,1585.9,1.5958]
[1744283846068,0.00944048,1586.2,1586.0,7.30264508]
[1744283846280,0.00944048,1586.2,1586.1,7.59261]
[1744283846571,0.00944048,1586.2,1586.1,14.89525508]
[1744283846767,0.00944048,1586.2,1586.1,22.6538461]
[1744283846969,0.00944048,1586.2,1586.1,23.10305508]
[1744283847469,0.00944048,1586.2,1586.1,19.89525508]
[1744283847667,0.00944048,1586.2,1586.1,22.6538461]
[1744283847975,0.00944048,1586.2,1586.1,16.97528494]
[1744283848467,0.00944048,1586.2,1586.1,18.23709494]
[1744283849675,0.00944048,1586.2,1586.1,9.21669392]
[1744283849873,2.77597048,1586.2,1586.1,7.30264508]
[1744283850376,1.26193,1586.0,1585.8,1.27145048]
[1744283850670,1.26193,1586.0,1585.9,7.30264508]
[1744283850874,1.51424048,1586.2,1585.9,7.30264508]
[1744283851176,0.00944048,1586.2,1586.1,1.26181]
[1744283851475,1.58804048,1586.2,1586.1,1.26181]
[1744283851675,1.58804048,1586.2,1586.1,8.56445508]
[1744283852174,0.00944048,1586.2,1586.1,8.56445508]
[1744283852378,0.00944048,1586.2,1586.1,14.53235508]
[1744283852575,0.00944048,1586.2,1586.1,19.53235508]
[1744283852772,3.07471063,1586.5,1586.2,8.56437508]
[1744283852977,3.07471063,1586.5,1586.4,1.26157]
[1744283853579,9.70646552,1586.7,1586.6,1.26141]
[1744283853776,9.70646552,1586.7,1586.6,9.20221]
[1744283854075,9.70646552,1586.7,1586.6,16.50485508]
[1744283854878,0.00944048,1586.8,1586.7,1.26133]
[1744283855176,0.00944048,1586.8,1586.7,8.56397508]
[1744283855878,0.00944048,1586.8,1586.7,7.30264508]
[1744283856071,2.91139048,1586.8,1586.7,7.30264508]
[1744283856277,2.91139048,1586.8,1586.7,8.93244508]
[1744283856477,7.91139048,1586.8,1586.7,1.6298]
[1744283857281,1.27069048,1586.8,1586.7,8.93244508]
[1744283857578,1.26135,1586.7,1586.5,1.26143]
[1744283857778,2.90835,1586.7,1586.5,10.16357508]
[1744283857980,2.90835,1586.7,1586.6,7.30264508]
[1744283858675,13.00814,1586.7,1586.2,9.28860315]
[1744283858881,1.26164,1586.4,1586.3,8.90214508]
[1744283859074,1.26155,1586.5,1586.3,8.56429508]
[1744283859275,1.26155,1586.5,1586.4,7.30264508]
[1744283859578,1.26155,1586.5,1586.3,1.26165]
[1744283859579,1.26165,1586.3,1586.2,6.5107]
[1744283860078,1.26163,1586.4,1586.3,1.26165]
[1744283860277,1.26163,1586.4,1586.3,7.30264508]